Cogmind - Beta 15 @@@ ROGUE MODE // 2025.09.16 @ 11:15:23 Player: winnking222 Result: Destroyed by G-34 Mercenary with Small Laser Performance ------------- Evolutions (0) 0 Regions Visited (1) 200 Robots Destroyed (21) 105 Value Destroyed (428) 428 Prototype IDs (0) 0 Alien Tech Used (0) 0 Bonus (0) 0 TOTAL SCORE: 733 Bonus ------- None Cogmind --------- Core Integrity 0/250 Matter 300/300 Energy 100/100 System Corruption 0% Temperature Cool (6) Movement Core (350) Ox6 Location -10/Materials Parts ------- > --- POWER (1) -------- (None) > --- PROPULSION (2) --- (None) > --- UTILITY (2) ------ Large Storage Unit > --- WEAPON (2) ------- (None) > --- INVENTORY (15) --- Light Ion Engine Light Treads Light Treads Light Treads Aluminum Leg Wheel Compact Wheel Medium Matter Pod (100) Seismic Detector Weapon Shielding Medium Laser Small Laser Peak State ------------ > --- POWER ------------ Light Ion Engine > --- PROPULSION ------- Aluminum Leg Aluminum Leg > --- UTILITY ---------- Large Storage Unit Seismic Detector > --- WEAPON ----------- Light Assault Rifle Light Assault Rifle > --- INVENTORY -------- Ion Engine Light Ion Engine Light Treads Light Treads Aluminum Leg Wheel Compact Wheel Seismic Detector Light Armor Plating Medium Laser [Rating: 8] Favorites ----------- Power Ion Engine Engine Ion Engine Propulsion Aluminum Leg Leg Aluminum Leg Utility Large Storage Unit Device Seismic Detector Storage Large Storage Unit Protection Light Armor Plating Weapon Light Assault Rifle Ballistic Gun Light Assault Rifle Build | -11 -10 ------- Run | Yrd Mat Slots Evolved . | . . Power . | . . Propulsion . | . . Utility . | . . Weapon . | . . Parts Attached 12 | 7 5 Power 2 | 1 1 Engine 2 | 1 1 Core . | . . Reactor . | . . Propulsion 3 | 2 1 Treads . | . . Leg 3 | 2 1 Wheel . | . . Hover . | . . Flight . | . . Utility 4 | 2 2 Device 1 | 1 . Storage 2 | 1 1 Processor . | . . Hackware . | . . Protection 1 | . 1 Artifact . | . . Weapon 3 | 2 1 Energy Gun . | . . Energy Cannon . | . . Ballistic Gun 3 | 2 1 Ballistic Cannon . | . . Launcher . | . . Special Weapon . | . . Impact Weapon . | . . Slashing Weapon . | . . Piercing Weapon . | . . Special Melee Weapon . | . . Unidentified Prototypes . | . . Parts Lost 10 | . 10 Power 2 | . 2 Propulsion 3 | . 3 Utility 2 | . 2 Weapon 3 | . 3 Highest Loss Streak 6 | . 6 To Critical Strikes . | . . Average Backups 11 | 5 12 Power 1 | . 1 Propulsion 6 | 3 6 Utility 2 | . 2 Weapon 1 | . 1 Tool/Special . | . . Unused Backups 12 | . 12 Power 1 | . 1 Propulsion 6 | . 6 Utility 3 | . 3 Weapon 2 | . 2 Tool/Special . | . . Average Slot Usage (%) 92 | . 92 Engine 10 | . 10 Leg 26 | . 26 Device 8 | . 8 Storage 14 | . 14 Protection 4 | . 4 Ballistic Gun 25 | . 25 Peak Build Rating 8 | 7 8 Average Rating 7 | 5 7 On Entrance 3 | . 7 Naked Turns . | . . Heaviest Build 30 | 11 30 Greatest Support 20 | 20 20 Greatest Overweight (x) 6 | 2 6 Average Overweight (x) . | . . Largest Inventory Capacity 15 | 8 15 Average Capacity 13 | 7 14 Most Carried 14 | 8 14 Average Carried 11 | 5 12 Final Capacity 15 | 8 15 Final Carried 12 | 7 12 Class Distribution -------------------- 100% | Mutant Dominant Class ---------------- Mutant | -10/Materials Resources | -11 -10 ----------- Run | Yrd Mat Matter Collected 584 | 294 290 Remotely . | . . Salvage Created 695 | 109 586 Parts 45 | 11 34 Haulers Intercepted . | . . Recyclers Shooed 3 | . 3 Parts Field Recycled . | . . Retrieved Matter . | . . Parts Self-Destructed . | . . Prevented . | . . Kills | -11 -10 ------- Run | Yrd Mat Combat Hostiles Destroyed 15 | . 15 Guns 15 | . 15 Classes Destroyed 5 | 2 3 Tunneler 3 | 3 . Recycler 2 | 1 1 Watcher 1 | . 1 Swarmer 6 | . 6 Grunt 9 | . 9 Best Kill Streak 4 | 2 4 Combat Bots Only 4 | . 4 Max Kills in Single Turn 2 | 1 2 Gunslinging 1 | . 1 Exploded . | . . Melee . | . . Uniques/NPCs Destroyed . | . . Combat | -11 -10 -------- Run | Yrd Mat Hostile Shots Fired 148 | . 148 Missed 41 | . 41 Hits 107 | . 107 Projectile 107 | . 107 Damage Taken 1145 | . 1145 Core 259 | . 259 Absorbed by Shields . | . . Core Remaining (%) 100 | 100 . Volleys Fired 105 | 12 93 Largest 2 | 2 2 Hottest 40 | 40 40 Shots Fired 181 | 24 157 Gun 181 | 24 157 Cannon . | . . Launcher . | . . Special . | . . Kinetic 181 | 24 157 Thermal . | . . Explosive . | . . Electromagnetic . | . . Robot Hit Streak 10 | 5 10 Robot Miss Streak 4 | 2 4 Penetration Max . | . . Secondary Targets 2 | . 2 Max Gunslinging Chain 1 | . 1 Shots Hit Robots 110 | 16 94 Core Hits 44 | 8 36 Critical Kills . | . . Critical Parts Destroyed . | . . Critical Strikes . | . . Melee Attacks . | . . Impact . | . . Slashing . | . . Piercing . | . . Sneak Attacks . | . . Combat Hostiles . | . . Follow-up Attacks . | . . Damage Inflicted 849 | 122 727 Guns 835 | 122 713 Cannons . | . . Explosions . | . . Melee . | . . Ramming 14 | . 14 Kinetic 835 | 122 713 Thermal . | . . Explosive . | . . Electromagnetic . | . . Impact . | . . Slashing . | . . Piercing . | . . Highest Corruption . | . . Average Corruption . | . . Corruption Purged . | . . Corruption Blocked . | . . Overload Shots . | . . Overflow Damage . | . . Projectiles . | . . Explosions . | . . Melee . | . . Knockbacks . | . . Impact . | . . Kinetic . | . . Secondary . | . . Self-Inflicted Damage . | . . Shots . | . . Rammed 1 | . 1 Targets Rammed 4 | . 4 Kicked 3 | . 3 Crushed . | . . Highest Temperature 18 | . 18 Average Temperature 5 | . 5 Received Heat Transfer 513 | . 513 Siege Activations . | . . Martial Activations . | . . Shielding Activations . | . . Robots Disrupted . | . . Combat Hostiles . | . . Robots Corrupted . | . . Combat Hostiles . | . . Parts Fried . | . . Impact Corruptions . | . . Robots Melted . | . . Combat Hostiles . | . . Parts Melted . | . . Heat Transferred . | . . Parts Sabotaged . | . . Parts Stolen . | . . Parts Stripped . | . . Power Chain Reactions . | . . Alert | -11 -10 ------- Run | Yrd Mat Maximum Alert Level . | . . Low Security (%) 100 | 100 100 Level 1 . | . . Level 2 . | . . Level 3 . | . . Level 4 . | . . Level 5 . | . . High Security . | . . Max Security . | . . Peak Influence 148 | 5 148 Initial . | . . Average 59 | . 66 Influence Increases 489 | 20 469 Destroy 0b10 Robot/C 300 | . 300 Destroy 0b10 Robot/NC 30 | 20 10 Destroy Leader 82 | . 82 Successful Hack 17 | . 17 Lose Combat Pursuer 60 | . 60 Influence Decreases 477 | 20 457 Time Decay 377 | 20 357 Lost Part 100 | . 100 Squads Dispatched 5 | . 5 Investigation 2 | . 2 Extermination . | . . Reinforcement 3 | . 3 Assault . | . . Garrison . | . . Intercept . | . . Searches Triggered . | . . Construction Impeded . | . . Haulers Reinforced . | . . Active Scanning Responses . | . . Cargo Convoy Interrupts . | . . Stealth | -11 -10 --------- Run | Yrd Mat Distress Signals 2 | . 2 Communications Jammed . | . . Distress Signals . | . . Times Spotted 28 | . 28 Peak Tracking Total 9 | . 9 Tactical Retreats 3 | . 3 Traps | -11 -10 ------- Run | Yrd Mat Traps Triggered 2 | . 2 Indirectly . | . . Trap Hack Attempts . | . . Triggered . | . . Disarmed . | . . Reprogrammed . | . . Reused . | . . Traps Extracted . | . . Installed . | . . Triggered . | . . Machines | -11 -10 ---------- Run | Yrd Mat Machines Disabled . | . . Max in Single Turn . | . . Machines Repaired . | . . Machines Dismantled . | . . Machines Sabotaged . | . . Overloaded Fab Kills . | . . Hacking | -11 -10 --------- Run | Yrd Mat Machines Accessed 6 | . 6 Terminals 5 | . 5 Fabricators . | . . Repair Stations . | . . Recycling Units 1 | . 1 Scanalyzers . | . . Garrison Access . | . . Total Hacks 10 | . 10 Successful 6 | . 6 Failed 4 | . 4 Catastrophic . | . . Database Lockouts . | . . Manual 8 | . 8 Terminals 9 | . 9 Fabricators . | . . Repair Stations . | . . Recycling Units 1 | . 1 Scanalyzers . | . . Garrison Access . | . . Terminal Hacks . | . . Fabricator Hacks . | . . Repair Station Hacks . | . . Recycling Unit Hacks 1 | . 1 Report Inventory 1 | . 1 Scanalyzer . | . . Garrison Access Hacks . | . . Unauthorized Hacks 5 | . 5 Terminals 5 | . 5 Botnet 2 | . 2 Skim 3 | . 3 Fabricators . | . . Repair Stations . | . . Recycling Units . | . . Scanalyzers . | . . Garrison Access . | . . Data Cores Recovered . | . . Used . | . . Hacking Detections 3 | . 3 Full Trace Events . | . . Feedback Events . | . . Feedback Blocked . | . . Robot Schematics Acquired . | . . Robots Built . | . . Authchips . | . . Time . | . . Total Robot Build Rating . | . . Part Schematics Acquired . | . . Parts Built . | . . Authchips . | . . Time . | . . Total Part Build Rating . | . . Parts Repaired . | . . Time . | . . Parts Recycled . | . . Recycled Matter . | . . Retrieved Matter . | . . Retrieved Components . | . . Parts Scanalyzed . | . . Part Schematics Acquired . | . . Parts Damaged . | . . Bothacking | -11 -10 ------------ Run | Yrd Mat Used RIF Installer . | . . Robots Hacked . | . . Non-combat . | . . Combat . | . . Robot Hacks Applied . | . . Relay Couplers Released . | . . Fabnet Peak Effective % . | . . Robots Rewired . | . . Allies Hacked . | . . Hacks Repelled . | . . Allies | -11 -10 -------- Run | Yrd Mat Total Allies . | . . Largest Group . | . . Highest-Rated Group . | . . Highest-Rated Ally . | . . Total Orders . | . . Ally Attacks . | . . Total Damage . | . . Kills . | . . Allies Corrupted . | . . Allies Melted . | . . Intel | -11 -10 ------- Run | Yrd Mat Active Infowar (turns) 621 | 20 601 Seismic 621 | 20 601 Robot Analysis Total . | . . Derelict Logs Recovered . | . . Drone Launches . | . . Drone Recoveries . | . . Exploration | -11 -10 ------------- Run | Yrd Mat Turns Passed 1069 | 117 952 Spaces Moved 421 | 51 370 Core 28 | 21 7 Treads . | . . Legs 393 | 30 363 Wheels . | . . Hover . | . . Flight . | . . Fastest Speed 50 | 50 120 Average Speed 175 | 100 185 Slowest Speed 350 | 150 350 Overloaded Moves . | . . Propulsion Burnouts . | . . Robots Hopped . | . . Potential Cave-ins . | . . Cave-ins Triggered . | . . Exploration Rate (%) 39 | 4 75 Regions Visited 1 Branch Regions . Pre-discovered Areas . | . . Known Exits Taken . | . . Unknown Exits Taken 1 | 1 . Scrap Searched . | . . Spaces Dug . | . . Terrain Destroyed . | . . Melee . | . . Projectile . | . . AOE . | . . Terrain Rammed . | . . Walls Destroyed . | . . Machines Disabled . | . . Actions | -11 -10 --------- Run | Yrd Mat Total 604 | 96 508 Wait 41 | 16 25 Move 420 | 50 370 Hop . | . . Pick Up 20 | 11 9 Fast Attach 3 | 3 . Attach 8 | 4 4 Detach . | . . Swap 2 | . 2 Drop 1 | . 1 Fire 105 | 12 93 Melee . | . . Ram 1 | . 1 Kick 3 | . 3 Crush . | . . Escape Stasis . | . . Rewire . | . . Trap . | . . Miscellaneous . | . . Route ------- -11/Scrapyard -10/Materials (discovered 5 exits: [*Mat x3] / [*Min x2]) History --------- Turn | Location | Event 8 | -11/Scrapyard | Discovered new exit (range 14) 118 | -11/Scrapyard | Entered Materials 302 | -10/Materials | Build established: Mutant 339 | -10/Materials | Discovered new exit (range 10) 429 | -10/Materials | Discovered new exit (range 4) 608 | -10/Materials | Discovered new exit (range 16) 746 | -10/Materials | Discovered new exit (range 12) 978 | -10/Materials | Discovered new exit (range 4) 1052 | -10/Materials | Core integrity fell below 50% 1061 | -10/Materials | Core integrity fell below 20% 1070 | -10/Materials | Destroyed by G-34 Mercenary with Small Laser Last Messages --------------- 00959_ Kicked R-06 Scavenger out of the way. 00962_ Kicked U-05 Engineer. 00976_ Triggered Alarm Trap. 00976_ An alarm sounds. 00976_ ALERT: Alarm triggered, dispatching investigation squad. 00978_ EXIT=FOUND 00980_ Aluminum Leg destroyed. 00990_ G-34 Mercenary destroyed. 00995_ Acquired 15 matter. 01011_ Acquired 2 matter. 01012_ U-05 Engineer lays Concrete. 01013_ Acquired 2 matter. 01013_ Lgt. Assault Rifle destroyed. 01016_ Acquired 1 matter. 01036_ Lgt. Assault Rifle destroyed. 01038_ Seismic Detector destroyed. 01039_ Ion Engine destroyed. 01043_ Aluminum Leg destroyed. 01045_ R-06 Scavenger collects Ion Engine. 01059_ Slammed into R-06 Scavenger. Map ----- +----------------------------------------------------+ | # % !/ | | ? """ # | | ? """ ^ ^ ^##################### # "T" | | """ ^ #???????????????????# # """ | | #???????????????????# # | | #???????????????????# ######### | | ######### #???????????????????# #???????? | | ?###?????????# #???????????????????# #???????? | | ????????????? ???????????????????# #???????? | | ????????????? ???????????????????# ######### | | ????????????| ??????????########?# # ? | | ????????????" < ??????????# ! ?# # """ | | ???????????|| ??????????# # # """"" | | ????????????" ??????????# # # """"" | | ???????????? ??????????# + + """"" | | ?????????????? #?????##???# # # """ | | ??????????????????????? ???# # # | | ??????????????????????? ???# ?# # | | ??????????????????????? ???# ?# ###""T""# | | ???????????????????????#+???# ??# #?#"""""# | | ?????????????# ??????### #######+##### ######### | | ?????????????# ##### #???#[ *= T #? | | ?????????????+ #???# ## #? | | ?????????????# u " #???# ## #? | | ?????????????? ! #???# ## """" #? | | ?????????????????????# @ #???# ## """" #? | | ?????????????????????#### ##???# ## """" #? | | ????????????????????????# #????# ## #? | | ?????????????????????####g#????# ## #? | | ????????????????????##! g#????# ####"T"# #? | | ????????????????????#! #????# #??#"""# #? | | ????????????????????#! g ######*#??##### #? | | ????????????????????#! ##%#####??# #? | | ????????????????????#! #??# #? | | ????????????????????##! < #??# #? | | ?????????????????????#### #??# #? | | ????????????????????????# ########??# #? | | ????????????????????????#######??######## #? | | ?????????????????????????????????# [ # #? | | ?????????????????????????????????# + #? | | ?????????????????????????????????# """ #### #? | | ?????????????????????????????????# """ ???? #? | | ?????????????????????????????????# """ ????? #? | | ?????????????????????????????????# ?????#####? | | ?????????????????????????????????#####???????????? | | ?????????????????????????????????????????????????? | | ?????????????????????????????????????????????????? | | ?????????????????????????????????????????????????? | | ?????????????????????????????????????????????????? | | | +----------------------------------------------------+ Best States ------------- Heat Dissipation 25 Energy Generation 10 Energy Capacity 250 Matter Stores 300 Matter Capacity 300 Sight Range 16 Terrain Scan Density 10 Armor Coverage 150 Evasion (%) 55 Item Schematics ----------------- None Robot Schematics ------------------ None Fabricated ------------ Nothing Repaired ---------- Nothing Alien Tech Used ----------------- None Achievements -------------- None Challenges ------------ None Game ------ Seed StasisHellfireRedistributor Manual? 0 Play Time 00:06:59 Cumulative 183.0 hours Start 2025.09.16 @ 10:59:36 End 2025.09.16 @ 11:15:23 Sessions 1 Manual Loads 0 Difficulty Rogue Special Mode None Game No. 249 Rogue 249 Adventurer 0 Explorer 0 Win Type - Total 2 Types 2/0/0/0/0/0/0/0/0/0 Lore% 73 Gallery% 71 Achievement% 60 Wizard Run 0 Options --------- Layout 0 ASCII 0 Keyboard 0 Movement Mouse Keybinds 0 Fullscreen 1 Font 16/SmallcapsGlow Map View 75x55 Zoom Use 0% Tactical HUD 1 Map Filters NONE Filters NONE Steam 1 RUN: 1c547b09-7b9b-4028-9713-dae9b7a287e4